bitfinex/quotes_SOLUSD_20220227
["timestamp","ask_amount","ask_price","bid_price","bid_amount"]
[1645975721268,1.77140683,90.979,90.882,114.24678921]
[1645975721469,1.69918443,90.988,90.883,4.648]
[1645975722066,1.69918443,90.988,90.89,16.5023]
[1645975722267,1.69918443,90.988,90.891,116.148]
[1645975723269,1.69918443,90.988,90.891,111.75]
[1645975723468,1.69918443,90.988,90.89,16.5023]
[1645975723871,1.69918443,90.988,90.891,0.25]
[1645975724068,1.69918443,90.988,90.892,4.398]
[1645975724267,1.69918443,90.988,90.893,0.25]
[1645975724468,1.69918443,90.988,90.894,4.398]
[1645975724669,1.69918443,90.988,90.895,0.25]
[1645975724869,1.69918443,90.988,90.896,4.398]
[1645975725069,1.83646638,90.979,90.896,4.398]
[1645975725271,1.83646638,90.979,90.888,112.2]
[1645975725469,0.34226078,90.978,90.888,112.2]
[1645975725871,0.34226078,90.978,90.87,128.0055]
[1645975726273,1.83646638,90.979,90.871,4.399]
[1645975726673,1.83646638,90.979,90.88,128.0041]
[1645975726873,1.83646638,90.979,90.881,0.25]
[1645975728075,1.83646638,90.979,90.871,4.398]
[1645975728277,1.83646638,90.979,90.87,128.0054]
[1645975728479,0.34226078,90.978,90.87,128.0054]
[1645975728677,1.83646638,90.979,90.87,128.0054]
[1645975728877,1.83646638,90.979,90.88,128.254]
[1645975729680,113.22544729,90.988,90.87,111.5]
[1645975729879,1.57903515,90.987,90.868,111.5]
[1645975730279,0.34226078,90.986,90.868,111.5]
[1645975730682,16.5071,90.97,90.868,111.5]
[1645975730883,16.5071,90.97,90.855,23.2788]
[1645975730884,111.5,90.968,90.855,23.2788]
[1645975731080,1.91394223,90.967,90.855,23.2788]
[1645975731281,2.25620301,90.967,90.855,23.2788]
[1645975731683,1.91394223,90.967,90.855,23.2788]
[1645975732485,16.5109,90.95,90.855,23.2788]
[1645975732687,33.53544265,90.949,90.856,0.25]
[1645975732885,1.59339984,90.948,90.883,3.1297559]
[1645975734386,31.94800923,90.949,90.883,3.1297559]
[1645975734790,31.94800923,90.949,90.884,0.25]
[1645975734988,1.83746995,90.988,90.884,0.25]
[1645975735187,1.83746995,90.988,90.884,24.168]
[1645975735487,1.74336119,91.002,90.885,120.49678921]
[1645975735686,16.5002,91.01,90.891,178.57]
[1645975735888,1.77659839,91.0,90.892,8.52608066]
[1645975736089,1.77659839,91.0,90.892,6.25]
[1645975736287,1.77659839,91.0,90.893,111.5]
[1645975736487,1.77659839,91.0,90.895,111.5]
[1645975736710,1.77659839,91.0,90.896,6.25]
[1645975736887,1.77659839,91.0,90.897,0.25]
[1645975737091,1.77659839,91.0,90.896,12.98770768]
[1645975737289,1.77659839,91.0,90.897,0.25]
[1645975737488,1.77659839,91.0,90.9,54.9925]
[1645975737688,1.77659839,91.0,90.902,111.5]
[1645975737888,1.77659839,91.0,90.904,111.5]
[1645975738089,1.77659839,91.0,90.905,6.25]
[1645975738890,1.63856883,90.999,90.91,16.5005]
[1645975739091,1.63856883,90.999,90.911,6.0]
[1645975741991,1.63856883,90.999,90.898,23.043]
[1645975741992,16.5032,90.99,90.898,23.043]
[1645975742390,1.42342109,90.989,90.898,23.043]
[1645975743491,1.42342109,90.989,90.9,16.5021]
[1645975744494,16.5054,90.98,90.898,23.043]
[1645975744694,27.61739926,90.979,90.898,23.043]
[1645975744894,1.8722578,90.978,90.898,23.043]
[1645975745094,1.8722578,90.978,90.885,23.9145]
[1645975746101,1.57361153,90.969,90.883,3.1297559]
[1645975746302,13.28,90.96,90.883,3.1297559]
[1645975746502,27.58911023,90.959,90.883,3.1297559]
[1645975746702,1.76923924,90.958,90.883,3.1297559]
[1645975747603,1.76923924,90.958,90.884,6.0]
[1645975748205,25.82787946,90.959,90.884,6.0]
[1645975748605,25.82787946,90.959,90.883,3.1297559]
[1645975749609,1.6125685,90.958,90.883,3.1297559]
[1645975751009,25.82787946,90.959,90.883,3.1297559]
[1645975751209,1.89210886,90.985,90.884,2.99678921]
[1645975751411,12.53352681,91.201,90.886,70.0]
[1645975751721,18.13191145,91.383,91.323,72.79105026]
[1645975751920,0.006295,91.462,91.33,13.28]
[1645975752122,0.572621,91.562,91.45,331.89]
[1645975752322,46.2755361,91.747,91.392,2.74678921]
[1645975752323,1.83076065,91.728,91.46,13.28]
[1645975752519,1.83076065,91.728,91.47,331.89]
[1645975752724,1.83076065,91.728,91.472,111.5]
[1645975753018,1.86213026,91.887,91.471,8.96944015]
[1645975753019,2.12685981,91.815,91.634,0.20381886]
[1645975753218,34.09884612,91.796,91.634,0.20381886]
[1645975753423,27.69983369,91.779,91.634,0.20381886]
[1645975753618,27.07451669,91.764,91.634,0.20381886]
[1645975753820,4.34868,91.754,91.604,2.97878221]
[1645975754019,26.57451669,91.764,91.605,2.60724751]
[1645975754218,15.43538584,91.753,91.6,149.2222]
[1645975754420,15.43538584,91.753,91.55,163.29646128]
[1645975754618,15.43538584,91.753,91.43,16.8732]
[1645975754819,4.25,91.702,91.47,165.94]
[1645975755021,26.6488777,91.739,91.43,16.8732]
[1645975755022,26.6488777,91.739,91.46,13.28]
[1645975755219,26.6488777,91.739,91.375,2.53758789]
[1645975755220,35.74183574,91.7,91.39,165.94]
[1645975755421,165.94,91.67,91.4,13.28]
[1645975755621,165.94,91.66,91.402,4.28113]
[1645975755821,165.94,91.65,91.404,0.94701826]
[1645975756021,16.4142,91.63,91.4,13.28]
[1645975756220,16.4142,91.63,91.29,54.6935]
[1645975756221,165.94,91.6,91.374,19.79190542]
[1645975756422,13.28,91.59,91.375,4.2824]
[1645975756620,33.6426459,91.54,91.39,13.28]
[1645975756820,1.78894647,91.539,91.392,4.2816]
[1645975757021,1.78894647,91.539,91.393,4.373]
[1645975757222,2.09046278,91.539,91.43,165.94]
[1645975757425,2.09046278,91.539,91.44,13.28]
[1645975757623,2.09046278,91.539,91.441,8.6513]
[1645975757824,76.96727883,91.537,91.354,2.12709222]
[1645975758124,1.96727883,91.537,91.37,165.94]
[1645975758322,1.96727883,91.537,91.39,165.94]
[1645975758524,1.96727883,91.537,91.391,4.28165]
[1645975758726,33.6426459,91.54,91.402,5.0]
[1645975758924,2.1325921,91.699,91.452,5.0]
[1645975759125,1.76436471,91.749,91.49,165.94]
[1645975759326,0.34678921,91.736,91.512,5.0]
[1645975759526,0.34678921,91.736,91.56,165.94]
[1645975759725,13.99238584,91.777,91.561,0.25]
[1645975759927,4.25,91.732,91.561,0.25]
[1645975760125,32.73979743,91.731,91.561,0.25]
[1645975760326,2.38167612,91.73,91.561,0.25]
[1645975760525,2.38167612,91.73,91.57,13.28]
[1645975761126,15.66167612,91.73,91.57,13.28]
[1645975761330,2.21899421,91.728,91.571,0.25]
[1645975762330,2.21899421,91.728,91.571,5.34382282]
[1645975762534,2.21899421,91.728,91.581,2.19970114]
[1645975762733,4.364,91.727,91.59,13.28]
[1645975762933,4.364,91.727,91.591,6.25]
[1645975763233,2.33951437,91.731,91.591,11.48384252]
[1645975763631,2.33951437,91.731,91.591,0.25]
[1645975763833,4.363,91.73,91.591,0.25]
[1645975764234,17.643,91.73,91.571,6.0]
[1645975764434,17.643,91.73,91.57,13.28]
[1645975764435,1.49725825,91.729,91.57,13.28]
[1645975764733,1.49725825,91.729,91.47,32.7212]
[1645975764734,4.26,91.712,91.54,13.28]
[1645975765040,4.26,91.712,91.472,5.0]
[1645975765041,26.50180748,91.69,91.52,13.28]
[1645975765234,6.36588215,91.689,91.53,13.28]
[1645975765438,26.50180748,91.69,91.552,5.0]
[1645975765633,1.56687305,91.689,91.56,179.22]
[1645975765834,1.56687305,91.689,91.531,27.01972326]
[1645975765835,26.50180748,91.69,91.561,2.1891772]
[1645975766035,1.72912238,91.689,91.56,165.94]
[1645975766233,26.50180748,91.69,91.57,13.28]
[1645975766234,4.365,91.688,91.57,13.28]
[1645975766433,1.75085727,91.689,91.57,13.28]
[1645975766633,4.365,91.688,91.57,13.28]
[1645975766834,4.365,91.688,91.55,13.28]
[1645975767034,1.75085727,91.689,91.55,13.28]
[1645975767834,26.50180748,91.69,91.572,5.0]
[1645975768034,26.50180748,91.69,91.58,13.28]
[1645975768237,28.10303639,91.69,91.581,0.25]
[1645975768534,1.90791195,91.689,91.581,6.25]
[1645975769135,26.50180748,91.69,91.581,6.25]
[1645975769335,1.68156683,91.689,91.581,6.25]
[1645975769536,26.50180748,91.69,91.581,5.75]
[1645975769735,26.50180748,91.69,91.58,13.28]
[1645975769936,26.50180748,91.69,91.57,13.28]
[1645975770143,26.50180748,91.69,91.55,13.28]
[1645975770337,1.76532729,91.689,91.55,13.28]
[1645975770537,7.48,91.689,91.55,13.28]
[1645975771138,9.43162468,91.689,91.551,4.27416]
[1645975771338,7.48,91.689,91.551,4.27416]
[1645975771539,95.0,91.688,91.5,165.94]
[1645975771746,4.26,91.661,91.48,13.28]
[1645975772142,4.26,91.661,91.44,13.28]
[1645975772143,13.28,91.65,91.44,13.28]
[1645975772341,26.47473353,91.64,91.44,13.28]
[1645975772542,13.28,91.63,91.44,13.28]
[1645975772744,1.65174397,91.629,91.441,114.24678921]
[1645975772941,13.28,91.63,91.442,7.24652935]
[1645975773141,1.98273779,91.629,91.444,2.79853021]
[1645975773342,1.37092519,91.639,91.447,2.98971992]
[1645975773642,13.28,91.63,91.461,111.5]
[1645975773841,13.28,91.63,91.464,2.5005891]
[1645975774041,13.28,91.63,91.461,2.91997204]
[1645975774241,13.28,91.63,91.441,2.3741147]
[1645975774442,13.28,91.63,91.442,6.0]
[1645975774642,13.28,91.63,91.431,2.76559598]
[1645975774643,6.07651728,91.629,91.444,4.27916]
[1645975774840,13.28,91.63,91.445,6.0]
[1645975775040,1.51934403,91.629,91.446,4.27907]
[1645975775444,4.26,91.621,91.446,4.27907]
[1645975775641,28.22047206,91.609,91.421,2.66197092]
[1645975775841,26.53417622,91.609,91.422,6.0]
[1645975776041,1.4183232,91.608,91.422,6.0]
[1645975776241,1.4183232,91.608,91.423,111.5]
[1645975776443,1.4183232,91.608,91.431,111.5]
[1645975776642,1.4183232,91.608,91.434,2.45683824]
[1645975776842,1.4183232,91.608,91.437,2.80347132]
[1645975777043,1.4183232,91.608,91.45,13.28]
[1645975777243,1.4183232,91.608,91.453,2.73734216]
[1645975777444,1.4183232,91.608,91.454,0.25]
[1645975778446,1.4183232,91.608,91.451,0.25]
[1645975778846,1.4183232,91.608,91.436,2.49595292]
[1645975779046,1.4183232,91.608,91.42,2.58855199]
[1645975779347,1.4183232,91.608,91.421,6.0]
[1645975779746,4.26,91.601,91.421,6.0]
[1645975779946,13.28,91.59,91.393,6.0]
[1645975780146,28.6215205,91.589,91.435,362.43553072]
[1645975780348,1.61662582,91.588,91.435,362.43553072]
[1645975780551,4.371,91.587,91.435,362.43553072]
[1645975780949,4.371,91.587,91.436,0.25]
[1645975781149,4.371,91.587,91.411,111.5]
[1645975781349,1.61662582,91.588,91.431,111.5]
[1645975781552,1.61662582,91.588,91.44,13.28]
[1645975781750,1.61662582,91.588,91.442,2.49259899]
[1645975781953,1.61662582,91.588,91.45,13.28]
[1645975782151,1.61662582,91.588,91.451,6.25]
[1645975782351,1.61662582,91.588,91.451,9.33992986]
[1645975782752,1.61662582,91.588,91.452,111.5]
[1645975782952,1.61662582,91.588,91.454,111.5]
[1645975783153,1.61662582,91.588,91.457,2.28373425]
[1645975783353,16.9662283,91.589,91.462,95.0]
[1645975783553,16.9662283,91.589,91.464,2.37772048]
[1645975783751,16.9662283,91.589,91.467,3.12091721]
[1645975783953,16.9662283,91.589,91.47,2.6797306]
[1645975784251,16.9662283,91.589,91.471,0.25]
[1645975784851,16.9662283,91.589,91.472,111.5]
[1645975785053,16.9662283,91.589,91.474,111.5]
[1645975785353,16.9662283,91.589,91.475,3.18399015]
[1645975786753,1.70502722,91.588,91.475,3.18399015]
[1645975786954,16.9662283,91.589,91.475,3.18399015]
[1645975787154,16.9662283,91.589,91.475,0.25]
[1645975787356,16.9662283,91.589,91.454,111.5]
[1645975787658,16.9662283,91.589,91.457,2.57998631]
[1645975787855,16.9662283,91.589,91.46,2.4116023]
[1645975788159,112.94547148,91.588,91.46,2.4116023]
[1645975788357,1.5262256,91.587,91.46,2.4116023]
[1645975788958,1.5262256,91.587,91.411,2.87765191]
[1645975789158,111.5,91.586,91.391,111.5]
[1645975789458,1.36978474,91.585,91.392,3.06576725]
[1645975789658,13.28,91.57,91.392,3.06576725]
[1645975789859,13.28,91.57,91.393,111.5]
[1645975790059,35.52184041,91.569,91.394,2.6317108]
[1645975790261,1.69264211,91.568,91.394,2.6317108]
[1645975790460,35.52184041,91.569,91.396,111.5]
[1645975790665,35.52184041,91.569,91.411,111.5]
[1645975790868,35.52184041,91.569,91.421,111.5]
[1645975791065,35.52184041,91.569,91.422,3.01518882]
[1645975791468,35.52184041,91.569,91.424,111.5]
[1645975791667,35.52184041,91.569,91.426,111.5]
[1645975791870,35.52184041,91.569,91.428,111.5]
[1645975792070,1.69314064,91.568,91.43,111.5]
[1645975792270,35.52184041,91.569,91.432,111.5]
[1645975792470,35.52184041,91.569,91.434,111.5]
[1645975792670,35.52184041,91.569,91.436,111.5]
[1645975792979,1.58542074,91.567,91.439,2.66390052]
[1645975793180,1.58542074,91.567,91.429,2.32926944]
[1645975793382,1.58542074,91.567,91.396,3.02499874]
[1645975793580,1.58542074,91.567,91.397,4.372]
[1645975793982,4.372,91.566,91.396,3.02499874]
[1645975794180,111.5,91.559,91.396,3.02499874]
[1645975794380,111.5,91.539,91.396,3.02499874]
[1645975794580,113.34432254,91.529,91.396,3.02499874]
[1645975794780,111.5,91.529,91.33,13.28]
[1645975794981,1.45985026,91.528,91.382,2.43020875]
[1645975795481,111.5,91.519,91.382,2.43020875]
[1645975795682,26.73281006,91.52,91.382,2.43020875]
[1645975795683,111.5,91.509,91.383,2.88946244]
[1645975795889,1.72123839,91.508,91.383,2.88946244]
[1645975797488,4.26,91.501,91.311,4.374]
[1645975797687,115.874,91.507,91.293,7.00973895]
[1645975797688,4.26,91.481,91.293,7.00973895]
[1645975797888,111.5,91.469,91.293,7.00973895]
[1645975798088,1.53129417,91.468,91.293,7.00973895]
[1645975798390,111.5,91.469,91.293,115.876]
[1645975798590,111.5,91.469,91.302,2.83258296]
[1645975799187,111.5,91.469,91.303,4.377]
[1645975799391,1.46446377,91.468,91.303,4.377]
[1645975799790,1.46446377,91.468,91.304,2.74678921]
[1645975799990,28.00482609,91.48,91.304,2.74678921]
[1645975799991,28.00482609,91.48,91.336,111.5]
[1645975800189,28.00482609,91.48,91.337,2.25462038]
[1645975800490,28.00482609,91.48,91.341,111.5]
[1645975800688,28.00482609,91.48,91.343,111.5]
[1645975800888,28.00482609,91.48,91.354,111.5]
[1645975801091,28.00482609,91.48,91.361,111.5]
[1645975801288,28.00482609,91.48,91.372,2.83017312]
[1645975801487,4.375,91.549,91.381,111.5]
[1645975801688,4.373,91.579,91.391,111.5]
[1645975801889,13.28,91.57,91.401,111.5]
[1645975802088,16.4026,91.61,91.411,111.5]
[1645975802089,1.62230545,91.579,91.411,111.5]
[1645975802292,13.28,91.59,91.421,111.5]
[1645975802487,28.00552637,91.589,91.431,111.5]
[1645975802690,5.97143334,91.588,91.432,2.92047898]
[1645975802887,111.5,91.587,91.434,111.5]
[1645975803089,1.62110206,91.586,91.436,111.5]
[1645975803290,4.371,91.585,91.438,111.5]
[1645975803491,4.371,91.585,91.44,111.5]
[1645975803692,4.371,91.585,91.442,111.5]
[1645975803891,4.371,91.585,91.444,111.5]
[1645975804092,26.39710678,91.589,91.451,111.5]
[1645975804293,26.39710678,91.589,91.453,111.5]
[1645975804490,26.39710678,91.589,91.462,0.64]
[1645975804693,26.39710678,91.589,91.471,111.5]
[1645975804892,26.39710678,91.589,91.473,111.5]
[1645975805091,26.39710678,91.589,91.472,8.7473635]
[1645975805092,26.39710678,91.589,91.475,111.5]
[1645975805292,13.28,91.66,91.477,111.5]
[1645975805592,4.368,91.659,91.491,111.5]
[1645975805792,4.368,91.679,91.493,111.5]
[1645975805994,1.39214508,91.679,91.495,111.5]
[1645975806198,112.89214508,91.679,91.511,111.5]
[1645975806394,111.5,91.677,91.513,111.5]
[1645975806594,111.5,91.675,91.515,111.5]
[1645975806794,111.5,91.659,91.516,3.33509699]
[1645975806994,111.5,91.649,91.516,3.33509699]
[1645975807194,111.5,91.647,91.516,3.08509699]
[1645975807394,111.5,91.645,91.482,3.04059888]
[1645975807595,111.5,91.629,91.482,114.54059888]
[1645975807794,26.12239805,91.619,91.483,2.59576721]
[1645975808193,4.369,91.618,91.483,2.59576721]
[1645975808395,30.49139805,91.619,91.483,2.59576721]
[1645975808595,30.49139805,91.619,91.486,2.7698847]
[1645975808798,30.49139805,91.619,91.489,2.62774549]
[1645975808995,30.49139805,91.619,91.492,2.88670081]
[1645975809196,26.12239805,91.619,91.492,2.88670081]
[1645975809396,30.49039805,91.619,91.495,2.87967012]
[1645975809596,26.12239805,91.619,91.498,2.78350648]
[1645975809799,26.12239805,91.619,91.501,2.32887668]
[1645975809998,54.6199,91.7,91.504,3.06761844]
[1645975810199,13.28,91.69,91.506,111.5]
[1645975810398,1.85426026,91.689,91.521,111.5]
[1645975810599,1.54647334,91.688,91.524,2.29918472]
[1645975810800,1.5864922,91.668,91.521,2.78819392]
[1645975810999,111.5,91.669,91.521,2.78819392]
[1645975811000,31.43979586,91.659,91.521,2.78819392]
[1645975811201,4.367,91.658,91.522,0.25]
[1645975811405,29.99875242,91.659,91.521,2.78819392]
[1645975811606,29.99875242,91.659,91.524,2.91912252]
[1645975811806,29.99875242,91.659,91.527,2.51738148]
[1645975812005,29.99875242,91.659,91.53,2.96101654]
[1645975812206,29.99875242,91.659,91.533,2.53673342]
[1645975812408,29.99875242,91.659,91.536,2.88981354]
[1645975812602,29.99875242,91.659,91.539,3.07526046]
[1645975812803,29.99875242,91.659,91.542,2.44486816]
[1645975813110,29.99875242,91.659,91.545,3.0977586]
[1645975813311,29.99875242,91.659,91.561,111.5]
[1645975813604,29.99875242,91.659,91.564,2.71811019]
[1645975813804,13.28,91.71,91.566,111.5]
[1645975814012,13.28,91.71,91.56,13.28]
[1645975814013,4.365,91.709,91.568,111.5]
[1645975814204,4.365,91.709,91.571,111.5]
[1645975814405,108.9077,91.74,91.58,13.28]
[1645975814604,24.7898,91.777,91.581,6.25]
[1645975814605,113.01522385,91.729,91.581,6.25]
[1645975814804,13.28,91.72,91.581,6.25]
[1645975815005,111.5,91.707,91.551,2.98722096]
[1645975815205,13.28,91.7,91.552,0.25]
[1645975815404,6.17728262,91.699,91.552,6.25]
[1645975815606,6.17728262,91.699,91.553,2.29967119]
[1645975815905,6.17728262,91.699,91.554,6.0]
[1645975816104,111.5,91.698,91.554,6.0]
[1645975816303,6.11395866,91.697,91.531,2.30593324]
[1645975816512,16.3828,91.69,91.531,2.30593324]
[1645975816705,13.28,91.68,91.531,2.30593324]
[1645975816905,6.2111961,91.679,91.531,2.30593324]
[1645975817308,1.8451961,91.679,91.531,2.30593324]
[1645975817805,1.8451961,91.679,91.533,111.5]
[1645975818006,1.8451961,91.679,91.535,111.5]
[1645975818207,13.28,91.68,91.537,111.5]
[1645975818408,13.28,91.68,91.539,111.5]
[1645975818607,13.28,91.68,91.541,111.5]
[1645975818808,13.28,91.68,91.543,111.5]
[1645975819013,13.28,91.68,91.545,111.5]
[1645975819228,13.28,91.68,91.547,111.5]
[1645975819408,13.28,91.68,91.549,111.5]
[1645975819608,13.28,91.68,91.551,111.5]
[1645975819808,13.28,91.68,91.552,8.96597468]
[1645975820009,111.5,91.679,91.552,2.96597468]
[1645975820411,13.28,91.68,91.552,2.96597468]
[1645975820611,6.15028657,91.679,91.53,2.48821756]
[1645975820810,1.78428657,91.679,91.53,2.48821756]
[1645975821410,4.366,91.678,91.53,2.48821756]
[1645975821617,16.3868,91.67,91.531,6.0]
[1645975821811,13.28,91.66,91.531,6.0]
[1645975822010,1.84473846,91.659,91.53,2.48821756]
[1645975822212,113.34473846,91.659,91.53,2.48821756]
[1645975822413,1.46132582,91.658,91.53,2.48821756]
[1645975823013,111.5,91.657,91.53,2.48821756]
[1645975823312,111.5,91.649,91.53,2.48821756]
[1645975823514,111.5,91.639,91.53,2.48821756]
[1645975823714,111.5,91.629,91.464,2.32786406]
[1645975823914,1.46030054,91.628,91.464,2.32786406]
[1645975824120,1.46030054,91.628,91.465,4.367]
[1645975824415,111.5,91.619,91.466,111.5]
[1645975824615,111.5,91.609,91.467,2.9777356]
[1645975824816,111.5,91.599,91.469,111.5]
[1645975825015,13.28,91.59,91.471,111.5]
[1645975825215,111.5,91.589,91.472,2.39469862]
[1645975826317,13.28,91.59,91.465,2.63998196]
[1645975826519,29.6795,91.59,91.465,2.63998196]
[1645975828046,29.6795,91.59,91.467,111.5]
[1645975828241,29.6795,91.59,91.468,3.17516201]
[1645975828445,29.6795,91.59,91.47,111.5]
[1645975828645,29.6795,91.59,91.471,2.95296586]
[1645975829049,29.6795,91.59,91.471,2.70296586]
[1645975830447,29.6795,91.59,91.472,0.25]
[1645975831449,28.58014312,91.555,91.472,0.25]
[1645975832050,0.95061531,91.482,91.472,0.25]
[1645975832250,0.95061531,91.482,91.473,0.1828621]
[1645975832451,1.5589955,91.556,91.476,2.32371549]
[1645975832650,1.5589955,91.556,91.477,0.25]
[1645975833451,34.13499296,91.555,91.477,0.25]
[1645975833651,1.5589955,91.482,91.473,0.1828621]
[1645975834057,4.372,91.588,91.475,2.82203661]
[1645975834284,4.372,91.588,91.476,2.63636831]
[1645975834457,1.57434261,91.673,91.481,111.5]
[1645975834751,4.37,91.694,91.481,111.5]
[1645975834752,4.37,91.694,91.484,2.35726948]
[1645975834951,1.63968172,91.697,91.484,2.35726948]
[1645975834952,13.28,91.69,91.49,111.5]
[1645975835151,113.30813958,91.689,91.501,111.5]
[1645975835351,4.367,91.688,91.503,111.5]
[1645975835551,16.383,91.68,91.531,111.5]
[1645975835752,111.5,91.678,91.541,111.5]
[1645975835951,4.366,91.677,91.543,111.5]
[1645975836251,4.366,91.677,91.546,2.7025157]
[1645975836454,4.366,91.677,91.56,16.3798]
[1645975836653,4.366,91.677,91.562,3.06998451]
[1645975836852,4.366,91.677,91.563,0.25]
[1645975837058,16.3824,91.67,91.563,0.25]
[1645975837252,4.366,91.669,91.563,0.25]
[1645975837854,16.3824,91.67,91.563,0.25]
[1645975838957,1.42552072,91.669,91.562,3.06998451]
[1645975839156,16.3869,91.64,91.541,2.32387254]
[1645975839356,26.33086649,91.639,91.541,2.32387254]
[1645975840456,111.5,91.638,91.541,2.32387254]
[1645975840660,16.3889,91.63,91.541,2.32387254]
[1645975840857,16.3889,91.63,91.511,2.59245006]
[1645975841257,4.368,91.629,91.511,2.59245006]
[1645975841658,111.5,91.629,91.511,2.59245006]
[1645975841857,1.37597975,91.628,91.511,2.59245006]
[1645975842061,16.3907,91.62,91.511,2.59245006]
[1645975842258,30.56957937,91.619,91.511,2.59245006]
[1645975842661,30.56957937,91.619,91.52,16.3884]
[1645975842861,30.56957937,91.619,91.521,8.96184429]
[1645975843059,30.56957937,91.619,91.53,13.28]
[1645975843260,30.56957937,91.619,91.531,9.02319441]
[1645975844261,30.56957937,91.619,91.54,16.3853]
[1645975844463,30.56957937,91.619,91.541,8.72068186]
[1645975844862,30.56957937,91.619,91.541,2.72068186]
[1645975845064,16.3846,91.65,91.541,2.72068186]
[1645975845262,16.3808,91.67,91.541,0.25]
[1645975845462,16.3808,91.67,91.54,13.28]
[1645975845663,1.60203799,91.668,91.54,2.94760068]
[1645975845961,1.60203799,91.668,91.506,4.366]
[1645975845962,111.5,91.659,91.506,2.86543765]
[1645975846163,1.60635691,91.658,91.506,2.86543765]
[1645975846362,111.5,91.657,91.506,2.86543765]
[1645975846563,1.68930546,91.656,91.506,2.86543765]
[1645975846767,111.5,91.655,91.506,2.86543765]
[1645975846965,1.77599447,91.654,91.506,2.86543765]
[1645975847166,111.5,91.639,91.506,2.86543765]
[1645975847365,16.3931,91.6,91.506,2.86543765]
[1645975847565,29.78680601,91.599,91.506,2.86543765]
[1645975847764,29.78680601,91.599,91.501,2.49936589]
[1645975848765,29.78680601,91.599,91.484,2.64893754]
[1645975848966,29.78680601,91.599,91.485,0.25]
[1645975849167,29.78680601,91.599,91.485,2.54276115]
[1645975850574,29.78680601,91.599,91.491,111.5]
[1645975850773,29.78680601,91.599,91.493,111.5]
[1645975850974,29.78680601,91.599,91.495,111.5]
[1645975851174,29.78680601,91.599,91.501,111.5]
[1645975851374,29.78680601,91.599,91.502,3.18363076]
[1645975851575,29.78680601,91.599,91.511,111.5]
[1645975851774,29.78680601,91.599,91.512,2.92945514]
[1645975852875,29.78680601,91.599,91.49,67.9062]
[1645975852876,29.78680601,91.599,91.492,2.42497886]
[1645975853100,29.78680601,91.599,91.493,0.25]
[1645975854006,29.78680601,91.599,91.492,2.42497886]
[1645975854907,111.5,91.598,91.485,2.53809085]
[1645975855101,111.5,91.589,91.485,2.53809085]
[1645975855304,13.28,91.58,91.485,2.53809085]
[1645975855501,33.30370443,91.579,91.485,2.53809085]
[1645975857508,16.4027,91.56,91.485,2.53809085]
[1645975857705,27.6878885,91.559,91.485,2.53809085]
[1645975859410,16.4025,91.55,91.485,2.53809085]
[1645975859607,29.6825,91.55,91.419,4.37]
[1645975859807,29.6825,91.55,91.414,2.65409629]
[1645975859808,29.6825,91.55,91.415,4.372]
[1645975860110,112.91068342,91.549,91.415,4.372]
[1645975860306,16.4072,91.53,91.415,4.372]
[1645975860508,30.49024438,91.529,91.415,4.372]
[1645975860708,30.49024438,91.529,91.416,0.25]
[1645975860908,30.49024438,91.529,91.417,4.372]
[1645975861107,30.49024438,91.529,91.418,0.25]
[1645975861308,30.49024438,91.529,91.417,4.372]
[1645975861509,30.49024438,91.529,91.415,4.372]
[1645975862615,16.4078,91.52,91.421,111.5]
[1645975862813,16.4078,91.52,91.422,2.52726581]
[1645975863814,16.4078,91.52,91.413,2.7678663]
[1645975864014,113.21344679,91.519,91.414,4.373]
[1645975864214,16.4151,91.49,91.402,4.373]
[1645975864415,32.579694,91.489,91.393,4.374]